{"text_format":"1","workbook":"xlsx","n_sheets":2,"sheets":["Basic Data","LOANS"],"not_rendered":{"charts":0,"images":0,"macros":1,"external_links":0,"defined_names":20,"comments":0,"pivot_tables":0},"unopened":[],"bounds":{"document_bytes":16777216,"sheet_cells":100000,"rows_first":2000,"rows_last":500,"rows_between":2000,"halvings":0,"cell_chars":16384,"cell_head_chars":4096},"cells_cut":0,"cells_raw":0,"read":"whole","date_system":"1900"}

{"sheet":"Basic Data","index":0,"n_rows":15,"n_cols":39,"rows_kept":15,"cut":false,"hidden":false,"merged":[]}
["الكود","الاسم","الاساسى","الحافز","الانتظام","الإجمالى","اجر اليوم","اجر الساعة","الوظيفة","النوع","تاريخ التعيين","الحالة موجود منقطع",null,null,null,null,null,null,null,null,null,null,null,null,null,null,null,null,null,null,null,null,null,null,null,null,"أنثى","مساعد مدير","منقطع"]
[1001,"موظف _1001",1200,150,100,{"$f":"SUM(C2:E2)","v":1450},{"$f":"F2/30","v":48.333333333333336},{"$f":"G2/8","v":6.041666666666667},"عامل حياكة","ذكر","2019-07-01","موجود",null,null,null,null,null,null,null,null,null,null,null,null,null,null,null,null,null,null,null,null,null,null,null,null,null,"مشرف"]
[750,"اشرف عبدالله عبدالله",3000,1500,400,{"$f":"SUM(C3:E3)","v":4900},{"$f":"F3/30","v":163.33333333333334},{"$f":"G3/8","v":20.416666666666668},"محاسب","ذكر","1994-07-05","موجود",null,null,null,null,null,null,null,null,null,null,null,null,null,null,null,null,null,null,null,null,null,null,null,null,null,"مقصدار"]
[1002,"موظف _1002",1250,200,140,1590,{"$f":"F4/30","v":53},{"$f":"G4/8","v":6.625},"عامل حياكة","أنثى","2019-07-01","موجود",null,null,null,null,null,null,null,null,null,null,null,null,null,null,null,null,null,null,null,null,null,null,null,null,null,"عامل قص"]
[1003,"موظف _1003",1300,250,180,1730,57.666666666666664,7.208333333333333,"عامل حياكة","ذكر","2019-07-01","موجود",null,null,null,null,null,null,null,null,null,null,null,null,null,null,null,null,null,null,null,null,null,null,null,null,null,"عامل فرش"]
[1004,"موظف _1004",1350,300,220,1870,62.333333333333336,7.791666666666667,"عامل حياكة","ذكر","2019-07-01","موجود",null,null,null,null,null,null,null,null,null,null,null,null,null,null,null,null,null,null,null,null,null,null,null,null,null,"عامل فرز"]
[1006,"موظف _1006",1450,400,300,2150,71.666666666666671,8.9583333333333339,"عامل حياكة","أنثى","2019-07-01","موجود",null,null,null,null,null,null,null,null,null,null,null,null,null,null,null,null,null,null,null,null,null,null,null,null,null,"عامل تشطيب"]
[1007,"موظف _1007",1500,450,340,2290,76.333333333333329,9.5416666666666661,"عامل حياكة","أنثى","2019-07-01","منقطع",null,null,null,null,null,null,null,null,null,null,null,null,null,null,null,null,null,null,null,null,null,null,null,null,null,"عامل جودة"]
[1008,"موظف _1008",1550,500,380,2430,81,10.125,"عامل حياكة","ذكر","2019-07-01","موجود",null,null,null,null,null,null,null,null,null,null,null,null,null,null,null,null,null,null,null,null,null,null,null,null,null,"عامل تعبئة"]
[1009,"موظف _1009",1600,550,420,2570,85.666666666666671,10.708333333333334,"عامل حياكة","ذكر","2019-07-01","موجود",null,null,null,null,null,null,null,null,null,null,null,null,null,null,null,null,null,null,null,null,null,null,null,null,null,"عامل مخزن"]
[1010,"موظف _1010",1650,600,460,2710,90.333333333333329,11.291666666666666,"عامل حياكة","ذكر","2019-07-01","موجود",null,null,null,null,null,null,null,null,null,null,null,null,null,null,null,null,null,null,null,null,null,null,null,null,null,"محاسب"]
[1011,"موظف _1011",1700,650,500,2850,95,11.875,"عامل حياكة","ذكر","2019-07-01","موجود"]
[1012,"موظف _1012",1750,700,540,2990,99.666666666666671,12.458333333333334,"عامل حياكة","ذكر","2019-07-01","منقطع"]
[1013,"موظف _1013",1800,750,580,3130,104.33333333333333,13.041666666666666,"عامل حياكة","أنثى","2019-07-01","موجود"]
[1014,"اسلام اشرف عبدالله الفقى",3500,1500,750,5750,191.67,13.63,"محاسب","ذكر","2019-09-01","موجود"]

{"sheet":"LOANS","index":1,"n_rows":10,"n_cols":19,"rows_kept":10,"cut":false,"hidden":false,"merged":[[3,0,3,5],[3,13,3,18],[3,7,3,10]]}
[]
[]
[]
["بيان بحركة مبالغ سلف العاملين",null,null,null,null,null,null,"قيمة أقساط السلف عن شهر يوليو 2019",null,null,null,null,null,"بيان برصيد مبالغ السلف العاملين"]
[]
["الكود","الإســم","التاريخ","قيمة السلفة","توريد","قيمة القسط",null,"الكود","الإســم","الرصيد","قيمة القسط",null,null,"الكود","الإســم","قيمة السلفة","قيمة القسط","توريد","الرصيد"]
[750,"اشرف عبدالله عبدالله","2019-09-25",5000,0]
[1001,"موظف _1001","2019-09-25",1000,0]
[1014,"اسلام اشرف عبدالله الفقى","2019-09-28",6000,0]
[1011,"موظف _1011","2019-09-29",7000,0]